fUSD/lending_fUSD_20240515
["ID","MTS","AMOUNT","RATE_DAILY","PERIOD"]
[327060330,1715766640422,-500.0,0.0001178,2]
[327060331,1715766640432,-500.0,0.0001178,2]
[327060332,1715766640442,-500.0,0.0001178,2]
[327060333,1715766640451,-380.28737655,0.0001178,2]
[327060334,1715766640462,-500.0,0.0001178,2]
[327060335,1715766640471,-500.0,0.0001178,2]
[327060336,1715766640481,-500.0,0.0001178,2]
[327060337,1715766640491,-500.0,0.0001178,2]
[327060338,1715766640500,-245.97332976,0.0001178,2]
[327060339,1715766640510,-500.0,0.0001178,2]
[327060340,1715766640520,-589.84725396,0.0001178,2]
[327060341,1715766640530,-500.0,0.0001178,2]
[327060342,1715766640540,-500.0,0.0001178,2]
[327060343,1715766640550,-500.0,0.0001178,2]
[327060344,1715766640560,-514.04656479,0.0001178,2]
[327060345,1715766640570,-500.0,0.0001178,2]
[327060346,1715766640579,-209.98616442,0.0001178,2]
[327060347,1715766640589,-500.0,0.0001178,2]
[327060348,1715766640599,-500.0,0.0001178,2]
[327060349,1715766640608,-500.0,0.0001178,2]
[327060350,1715766640618,-175.49,0.0001179,2]
[327060351,1715766640628,-9325.09864489,0.00011798,2]
[327060352,1715766640757,-500.0,0.0001178,2]
[327060353,1715766640767,-500.0,0.0001178,2]
[327060354,1715766640777,-500.0,0.0001178,2]
[327060355,1715766640787,-513.68727614,0.0001178,2]
[327060356,1715766640796,-486.37311687,0.00011798,2]
[327060357,1715766640808,-584.00738402,0.00011798,2]
[327060358,1715766640820,-528.38659076,0.00011798,2]
[327060359,1715766640832,-295.36100424,0.00011798,2]
[327060360,1715766640844,-726.72366173,0.00011798,2]
[327060361,1715766640869,-151.6,0.00010915,2]
[327060362,1715766640881,-6206.57228452,0.00011798,2]
[327060363,1715766640919,-21749.60864306,0.00011798,2]
[327060364,1715766640928,-217.85327596,0.00011798,2]
[327060365,1715766640938,-562.534063,0.000118,2]
[327060366,1715766640950,-492.87714906,0.00011807,2]
[327060368,1715766640960,-217.85327596,0.00011824,2]
[327060370,1715766640969,-200.0,0.00011831,2]
[327060371,1715766640979,-1000.0,0.00011831,2]
[327060373,1715766640990,-500.0,0.00011831,2]
[327060375,1715766641000,-500.0,0.00011831,2]
[327060376,1715766641011,-200.0,0.00011832,2]
[327060377,1715766641020,-1000.0,0.00011832,2]
[327060378,1715766641030,-500.0,0.00011832,2]
[327060379,1715766641039,-500.0,0.00011832,2]
[327060380,1715766641049,-217.85327596,0.00011849,2]
[327060381,1715766641058,-39902.13133001,0.00011853,2]
[327060382,1715766641068,-217.85327596,0.00011875,2]
[327060383,1715766641077,-194.56564439,0.00011896,2]
[327060384,1715766641087,-237.10219524,0.00011896,2]
[327060385,1715766641097,-5558.95156203,0.00011896,2]
[327060386,1715766641107,-155.0,0.00011896,2]
[327060387,1715766641117,-181.19160963,0.00011896,2]
[327060388,1715766641128,-155.0,0.00011896,2]
[327060389,1715766641137,-360.30276025,0.00011896,2]
[327060390,1715766641147,-205.21103429,0.00011896,2]
[327060391,1715766641156,-189.84945054,0.00011896,2]
[327060392,1715766641166,-500.0,0.00011896,2]
[327060393,1715766641175,-314.06,0.00011896,2]
[327060394,1715766641186,-563.81,0.00011896,2]
[327060395,1715766641195,-500.0,0.00011896,2]
[327060396,1715766641205,-500.0,0.00011896,2]
[327060397,1715766641215,-565.8,0.00011896,2]
[327060398,1715766641224,-500.0,0.00011896,2]
[327060399,1715766641234,-500.0,0.00011896,2]
[327060400,1715766641243,-500.0,0.00011896,2]
[327060401,1715766641252,-500.0,0.00011896,2]
[327060402,1715766641262,-500.0,0.00011896,2]
[327060403,1715766641272,-500.0,0.00011896,2]
[327060404,1715766641281,-500.0,0.00011896,2]
[327060405,1715766641291,-500.0,0.00011896,2]
[327060406,1715766641300,-500.0,0.00011896,2]
[327060407,1715766641309,-510.40907988,0.00011896,2]
[327060408,1715766641320,-4425.44526103,0.00011897,2]
[327060409,1715766641329,-811.73,0.00011897,2]
[327060411,1715766641339,-811.73,0.00011897,2]
[327060413,1715766641349,-811.73,0.00011897,2]
[327060415,1715766641358,-811.73,0.00011897,2]
[327060417,1715766641367,-811.73,0.00011897,2]
[327060419,1715766641379,-811.73,0.00011897,2]
[327060421,1715766641388,-811.73,0.00011897,2]
[327060423,1715766641398,-811.73,0.00011897,2]
[327060425,1715766641407,-811.73,0.00011897,2]
[327060427,1715766641416,-811.73,0.00011897,2]
[327060429,1715766641426,-811.73,0.00011897,2]
[327060435,1715766641617,-503.96,0.00011897,2]
[327060436,1715766641629,-811.73,0.00011897,2]
[327060437,1715766641639,-503.96,0.00011897,2]
[327060438,1715766641647,-811.73,0.00011897,2]
[327060439,1715766641657,-503.96,0.00011897,2]
[327060440,1715766641666,-811.73,0.00011897,2]
[327060441,1715766641676,-503.96,0.00011897,2]
[327060442,1715766641685,-811.73,0.00011897,2]
[327060443,1715766641696,-503.96,0.00011897,2]
[327060444,1715766641705,-811.73,0.00011897,2]
[327060445,1715766641714,-503.96,0.00011897,2]
[327060446,1715766641724,-503.96,0.00011897,2]
[327060447,1715766641733,-503.96,0.00011897,2]
[327060448,1715766641742,-503.96,0.00011897,2]
[327060449,1715766641751,-503.96,0.00011897,2]
[327060450,1715766641761,-503.96,0.00011897,2]
[327060451,1715766641771,-503.96,0.00011897,2]
[327060452,1715766641780,-503.96,0.00011897,2]
[327060453,1715766641789,-503.96,0.00011897,2]
[327060454,1715766641798,-503.96,0.00011897,2]
[327060455,1715766641807,-503.96,0.00011897,2]
[327060456,1715766641817,-500.0,0.00011897,2]
[327060457,1715766641826,-500.0,0.00011897,2]
[327060458,1715766641837,-500.0,0.00011897,2]
[327060459,1715766641846,-173.60575312,0.00011897,2]
[327060460,1715766641855,-312.55229326,0.00011897,2]
[327060461,1715766641865,-500.0,0.00011897,2]
[327060462,1715766641876,-536.54511212,0.00011897,2]
[327060463,1715766641885,-589.61594392,0.00011897,2]
[327060464,1715766641894,-500.0,0.00011897,2]
[327060465,1715766641905,-500.0,0.00011897,2]
[327060466,1715766641916,-205.42229991,0.00011897,2]
[327060467,1715766641925,-500.0,0.00011897,2]
[327060468,1715766641935,-500.0,0.00011897,2]
[327060469,1715766641945,-500.0,0.00011897,2]
[327060470,1715766641954,-500.0,0.00011897,2]
[327060471,1715766641963,-500.0,0.00011897,2]
[327060472,1715766641973,-500.0,0.00011897,2]
[327060473,1715766641985,-500.0,0.00011897,2]
[327060474,1715766641994,-500.0,0.00011897,2]
[327060475,1715766642003,-500.0,0.00011897,2]
[327060476,1715766642013,-377.96,0.00011897,2]
[327060477,1715766642023,-217.23348852,0.00011897,2]
[327060478,1715766642034,-500.0,0.00011897,2]
[327060479,1715766642043,-500.0,0.00011897,2]
[327060480,1715766642052,-516.13202978,0.00011897,2]
[327060481,1715766642062,-394.07257793,0.00011897,2]
[327060482,1715766642071,-500.0,0.00011897,2]
[327060483,1715766642081,-621.15922916,0.00011897,2]
[327060484,1715766642090,-500.0,0.00011897,2]
[327060485,1715766642100,-500.0,0.00011897,2]
[327060486,1715766642109,-500.0,0.00011897,2]
[327060487,1715766642118,-187.93787204,0.00011897,2]
[327060488,1715766642129,-326.15,0.00011897,2]
[327060489,1715766642138,-500.0,0.00011897,2]
[327060490,1715766642148,-500.0,0.00011897,2]
[327060491,1715766642157,-500.0,0.00011897,2]
[327060492,1715766642166,-389.61199812,0.00011897,2]
[327060493,1715766642175,-442.04,0.00011897,2]
[327060494,1715766642185,-500.0,0.00011897,2]
[327060495,1715766642194,-500.0,0.00011897,2]
[327060496,1715766642203,-229.54,0.00011897,2]
[327060497,1715766642213,-1550.01,0.00011897,2]
[327060498,1715766642222,-1550.01,0.00011897,2]
[327060499,1715766642231,-1550.01,0.00011897,2]
[327060500,1715766642240,-1550.01,0.00011897,2]
[327060501,1715766642250,-500.0,0.00011897,2]
[327060502,1715766642260,-500.0,0.00011897,2]
[327060503,1715766642270,-167.21772332,0.00011897,2]
[327060504,1715766642280,-563.81,0.00011897,2]
[327060505,1715766642289,-563.81,0.00011897,2]
[327060506,1715766642299,-500.0,0.00011897,2]
[327060507,1715766642309,-2662.89,0.00011897,2]
[327060508,1715766642318,-563.81,0.00011897,2]
[327060509,1715766642328,-500.0,0.00011897,2]
[327060510,1715766642337,-2662.89,0.00011897,2]
[327060511,1715766642347,-563.81,0.00011897,2]
[327060512,1715766642357,-2662.89,0.00011897,2]
[327060513,1715766642366,-500.0,0.00011897,2]
[327060514,1715766642378,-563.81,0.00011897,2]
[327060515,1715766642389,-2662.89,0.00011897,2]
[327060516,1715766642399,-490.28276528,0.00011897,2]
[327060517,1715766642408,-563.81,0.00011897,2]
[327060518,1715766642417,-2662.89,0.00011897,2]
[327060519,1715766642427,-563.81,0.00011897,2]
[327060520,1715766642436,-2662.89,0.00011897,2]
[327060521,1715766642446,-563.81,0.00011897,2]
[327060522,1715766642455,-2662.89,0.00011897,2]
[327060523,1715766642465,-563.81,0.00011897,2]
[327060524,1715766642474,-563.81,0.00011897,2]
[327060525,1715766642483,-2662.89,0.00011897,2]
[327060526,1715766642493,-563.81,0.00011897,2]
[327060527,1715766642502,-2662.89,0.00011897,2]
[327060528,1715766642511,-2662.89,0.00011897,2]
[327060529,1715766642521,-2662.89,0.00011897,2]
[327060530,1715766642530,-563.81,0.00011897,2]
[327060531,1715766642540,-2662.89,0.00011897,2]
[327060532,1715766642550,-500.0,0.00011897,2]
[327060533,1715766642560,-563.81,0.00011897,2]
[327060534,1715766642569,-500.0,0.00011897,2]
[327060535,1715766642579,-563.81,0.00011897,2]
[327060536,1715766642588,-2662.89,0.00011897,2]
[327060537,1715766642598,-500.0,0.00011897,2]
[327060538,1715766642607,-297.36295498,0.00011897,2]
[327060539,1715766642616,-2662.89,0.00011897,2]
[327060540,1715766642631,-2662.89,0.00011897,2]
[327060541,1715766642641,-2662.89,0.00011897,2]
[327060542,1715766642650,-467.01555498,0.00011897,2]
[327060543,1715766642659,-810.7,0.00011897,2]
[327060544,1715766642668,-810.7,0.00011897,2]
[327060545,1715766642678,-810.7,0.00011897,2]
[327060546,1715766642688,-810.7,0.00011897,2]
[327060547,1715766642697,-433.6767387,0.00011897,2]
[327060548,1715766642707,-500.0,0.00011897,2]
[327060549,1715766642716,-500.0,0.00011897,2]
[327060550,1715766642727,-500.0,0.00011897,2]
[327060551,1715766642738,-500.0,0.00011897,2]
[327060553,1715766642747,-500.0,0.00011897,2]
[327060555,1715766642756,-538.80524453,0.00011897,2]
[327060556,1715766642766,-500.0,0.00011897,2]
[327060557,1715766642775,-500.0,0.00011897,2]
[327060559,1715766642785,-500.0,0.00011897,2]
[327060561,1715766642794,-432.71239764,0.00011897,2]
[327060563,1715766642804,-574.44,0.00011897,2]
[327060564,1715766642814,-500.0,0.00011897,2]
[327060565,1715766642823,-199.92217928,0.00011897,2]
[327060566,1715766642833,-500.0,0.00011897,2]
[327060567,1715766642843,-500.0,0.00011897,2]
[327060568,1715766642853,-500.0,0.00011897,2]
[327060569,1715766642863,-500.0,0.00011897,2]
[327060570,1715766642874,-500.0,0.00011897,2]
[327060571,1715766642884,-500.0,0.00011897,2]
[327060572,1715766642894,-190.16,0.00011897,2]
[327060573,1715766642909,-500.0,0.00011897,2]
[327060574,1715766642919,-500.0,0.00011897,2]
[327060575,1715766642929,-500.0,0.00011897,2]
[327060576,1715766642939,-500.0,0.00011897,2]
[327060577,1715766642950,-2196.05,0.00011897,2]
[327060578,1715766642959,-500.0,0.00011897,2]
[327060579,1715766642968,-2196.05,0.00011897,2]
[327060580,1715766642978,-2196.05,0.00011897,2]
[327060581,1715766642988,-500.0,0.00011897,2]
[327060582,1715766642998,-500.0,0.00011897,2]
[327060583,1715766643007,-2196.05,0.00011897,2]
[327060584,1715766643016,-500.0,0.00011897,2]
[327060585,1715766643025,-2196.05,0.00011897,2]
[327060586,1715766643034,-500.0,0.00011897,2]
[327060587,1715766643043,-2196.05,0.00011897,2]
[327060588,1715766643053,-500.0,0.00011897,2]
[327060589,1715766643063,-2196.05,0.00011897,2]
[327060590,1715766643072,-500.0,0.00011897,2]
[327060591,1715766643081,-2196.05,0.00011897,2]
[327060592,1715766643091,-500.0,0.00011897,2]
[327060593,1715766643100,-2196.05,0.00011897,2]
[327060594,1715766643110,-2196.05,0.00011897,2]
[327060595,1715766643120,-500.0,0.00011897,2]
[327060597,1715766643131,-500.0,0.00011897,2]
[327060598,1715766643140,-2196.05,0.00011897,2]
[327060600,1715766643149,-245.81626898,0.00011897,2]
[327060602,1715766643159,-500.0,0.00011897,2]
[327060603,1715766643168,-2196.05,0.00011897,2]
[327060604,1715766643177,-500.0,0.00011897,2]
[327060605,1715766643186,-2196.05,0.00011897,2]
[327060606,1715766643196,-500.0,0.00011897,2]
[327060607,1715766643205,-2196.05,0.00011897,2]
[327060608,1715766643215,-2196.05,0.00011897,2]
[327060609,1715766643224,-2196.05,0.00011897,2]
[327060610,1715766643233,-557.47,0.00011897,2]
[327060611,1715766643243,-295.25485082,0.00011897,2]
[327060612,1715766643252,-500.0,0.00011897,2]
[327060613,1715766643262,-500.0,0.00011897,2]
[327060614,1715766643271,-299.17,0.00011897,2]
[327060615,1715766643280,-174.61,0.00011897,2]
[327060616,1715766643289,-372.37,0.00011897,2]
[327060617,1715766643299,-309.88246499,0.00011897,2]
[327060618,1715766643308,-193.46,0.00011897,2]
[327060619,1715766643317,-500.0,0.00011897,2]
[327060620,1715766643327,-500.0,0.00011897,2]
[327060621,1715766643336,-500.0,0.00011897,2]
[327060622,1715766643345,-500.0,0.00011897,2]
[327060623,1715766643354,-458.10008536,0.00011897,2]
[327060624,1715766643363,-500.0,0.00011897,2]
[327060625,1715766643374,-500.0,0.00011897,2]
[327060626,1715766643383,-500.0,0.00011897,2]
[327060627,1715766643392,-500.0,0.00011897,2]
[327060628,1715766643401,-500.0,0.00011897,2]
[327060629,1715766643410,-500.0,0.00011897,2]
[327060630,1715766643420,-321.31902906,0.00011897,2]
[327060631,1715766643429,-500.0,0.00011897,2]
[327060632,1715766643439,-500.0,0.00011897,2]
[327060633,1715766643448,-500.0,0.00011897,2]
[327060634,1715766643457,-500.0,0.00011897,2]
[327060635,1715766643467,-194.83222712,0.00011897,2]
[327060636,1715766643476,-2824.34,0.00011897,2]
[327060637,1715766643485,-2824.34,0.00011897,2]
[327060638,1715766643495,-500.0,0.00011897,2]
[327060639,1715766643504,-500.0,0.00011897,2]
[327060640,1715766643514,-2824.34,0.00011897,2]
[327060641,1715766643523,-500.0,0.00011897,2]
[327060642,1715766643532,-500.0,0.00011897,2]
[327060643,1715766643542,-500.0,0.00011897,2]
[327060644,1715766643552,-2824.34,0.00011897,2]
[327060645,1715766643561,-413.55,0.00011897,2]
[327060646,1715766643571,-500.0,0.00011897,2]
[327060647,1715766643580,-2824.34,0.00011897,2]
[327060648,1715766643589,-500.0,0.00011897,2]
[327060649,1715766643599,-500.0,0.00011897,2]
[327060650,1715766643608,-500.0,0.00011897,2]
[327060651,1715766643618,-2824.34,0.00011897,2]
[327060652,1715766643628,-500.0,0.00011897,2]
[327060653,1715766643637,-217.18433919,0.00011897,2]
[327060654,1715766643647,-2824.34,0.00011897,2]
[327060655,1715766643656,-500.0,0.00011897,2]
[327060656,1715766643666,-2824.34,0.00011897,2]
[327060657,1715766643675,-2824.34,0.00011897,2]
[327060658,1715766643684,-500.0,0.00011897,2]
[327060659,1715766643693,-2824.34,0.00011897,2]
[327060660,1715766643703,-500.0,0.00011897,2]
[327060661,1715766643712,-2824.34,0.00011897,2]
[327060663,1715766643721,-500.0,0.00011897,2]
[327060665,1715766643730,-500.0,0.00011897,2]
[327060667,1715766643739,-2824.34,0.00011897,2]
[327060670,1715766643749,-500.0,0.00011897,2]
[327060671,1715766643758,-796.11051172,0.00011897,2]
[327060690,1715766644567,-500.0,0.0001178,2]
[327060691,1715766644576,-500.0,0.0001178,2]
[327060692,1715766644586,-25.71484714,0.0001178,2]
[327060693,1715766644612,-474.28515286,0.0001178,2]
[327060694,1715766644623,-2028.22948828,0.00011897,2]
[327060695,1715766644632,-500.0,0.00011897,2]
[327060696,1715766644642,-500.0,0.00011897,2]
[327060697,1715766644651,-2824.34,0.00011897,2]
[327060698,1715766644661,-500.0,0.00011897,2]
[327060699,1715766644670,-500.0,0.00011897,2]
[327060700,1715766644680,-2824.34,0.00011897,2]
[327060701,1715766644690,-500.0,0.00011897,2]
[327060702,1715766644699,-500.0,0.00011897,2]
[327060703,1715766644709,-2824.34,0.00011897,2]
[327060704,1715766644719,-500.0,0.00011897,2]
[327060705,1715766644728,-408.84,0.00011897,2]
[327060706,1715766644738,-486.26,0.00011897,2]
[327060708,1715766644748,-500.0,0.00011897,2]
[327060710,1715766644758,-500.0,0.00011897,2]
[327060711,1715766644767,-500.0,0.00011897,2]
[327060712,1715766644777,-500.0,0.00011897,2]
[327060713,1715766644786,-500.0,0.00011897,2]
[327060714,1715766644796,-500.0,0.00011897,2]
[327060715,1715766644805,-399.18,0.00011897,2]
[327060716,1715766644814,-500.0,0.00011897,2]
[327060717,1715766644824,-509.33020484,0.00011897,2]
[327060718,1715766644833,-500.0,0.00011897,2]
[327060719,1715766644844,-500.0,0.00011897,2]
[327060720,1715766644853,-500.0,0.00011897,2]
[327060721,1715766644863,-634.92,0.00011897,2]
[327060722,1715766644872,-536.7737811,0.00011897,2]
[327060723,1715766644884,-500.0,0.00011897,2]
[327060724,1715766644893,-500.0,0.00011897,2]
[327060725,1715766644906,-500.0,0.00011897,2]
[327060726,1715766644917,-500.0,0.00011897,2]
[327060727,1715766644927,-180.44246967,0.00011897,2]
[327060728,1715766644937,-500.0,0.00011897,2]
[327060729,1715766644948,-417.5309816,0.00011897,2]
[327060730,1715766644958,-737.0,0.00011898,2]
[327060731,1715766644968,-36955.78067942,0.00011898,2]
[327060732,1715766644980,-7237.83311816,0.00011898,2]
[327060733,1715766644994,-500.32600203,0.00011898,2]
[327060776,1715766646159,-500.0,0.0001178,2]
[327060778,1715766646168,-155.0,0.00011896,2]
[327060780,1715766646178,-283.3003478,0.00011898,2]
[327060790,1715766646953,-500.0,0.0001178,2]
[327060791,1715766646963,-500.0,0.0001178,2]
[327060792,1715766646972,-515.41863497,0.0001178,2]
[327060793,1715766646983,-500.0,0.0001178,2]
[327060794,1715766646994,-619.54408296,0.0001178,2]
[327060795,1715766647004,-500.0,0.00011897,2]
[327060796,1715766647014,-236483.16487995,0.00011898,2]
[327060797,1715766647023,-163.157545,0.00011898,2]
[327060798,1715766647032,-151.0,0.00011898,2]
[327060799,1715766647042,-151.310856,0.00011898,2]
[327060800,1715766647051,-151.0,0.00011898,2]
[327060801,1715766647061,-151.0,0.00011898,2]
[327060802,1715766647071,-151.0,0.00011898,2]
[327060803,1715766647080,-151.0,0.00011898,2]
[327060804,1715766647089,-185.948844,0.00011898,2]
[327060805,1715766647098,-151.0,0.00011898,2]
[327060806,1715766647108,-153.733721,0.00011898,2]
[327060807,1715766647117,-151.0,0.00011898,2]
[327060808,1715766647128,-151.0,0.00011898,2]
[327060809,1715766647136,-151.0,0.00011898,2]
[327060810,1715766647146,-151.0,0.00011898,2]
[327060811,1715766647155,-151.0,0.00011898,2]
[327060812,1715766647164,-151.0,0.00011898,2]
[327060813,1715766647174,-151.0,0.00011898,2]
[327060814,1715766647183,-151.0,0.00011898,2]
[327060815,1715766647192,-151.0,0.00011898,2]
[327060816,1715766647201,-151.0,0.00011898,2]
[327060817,1715766647210,-152.127856,0.00011898,2]
[327060818,1715766647219,-151.0,0.00011898,2]
[327060819,1715766647230,-153.896375,0.00011898,2]
[327060820,1715766647241,-151.0,0.00011898,2]
[327060821,1715766647250,-151.0,0.00011898,2]
[327060822,1715766647261,-151.0,0.00011898,2]
[327060823,1715766647272,-152.273788,0.00011898,2]
[327060824,1715766647281,-151.0,0.00011898,2]
[327060825,1715766647290,-153.384301,0.00011898,2]
[327060826,1715766647299,-151.0,0.00011898,2]
[327060827,1715766647308,-151.0,0.00011898,2]
[327060828,1715766647317,-151.0,0.00011898,2]
[327060829,1715766647326,-151.0,0.00011898,2]
[327060830,1715766647336,-151.0,0.00011898,2]
[327060831,1715766647347,-151.0,0.00011898,2]
[327060832,1715766647358,-151.0,0.00011898,2]
[327060833,1715766647367,-151.0,0.00011898,2]
[327060834,1715766647376,-853.829865,0.00011898,2]
[327060835,1715766647386,-853.829865,0.00011898,2]
[327060836,1715766647395,-853.829865,0.00011898,2]
[327060837,1715766647404,-853.829865,0.00011898,2]
[327060838,1715766647414,-151.0,0.00011898,2]
[327060839,1715766647423,-151.0,0.00011898,2]
[327060840,1715766647433,-151.0,0.00011898,2]
[327060841,1715766647442,-151.0,0.00011898,2]
[327060842,1715766647451,-167.15279,0.00011898,2]
[327060843,1715766647459,-167.15279,0.00011898,2]
[327060844,1715766647468,-167.15279,0.00011898,2]
[327060845,1715766647477,-167.15279,0.00011898,2]
[327060846,1715766647487,-151.0,0.00011898,2]
[327060847,1715766647495,-151.0,0.00011898,2]
[327060848,1715766647505,-151.0,0.00011898,2]
[327060849,1715766647514,-151.0,0.00011898,2]
[327060850,1715766647523,-153.499046,0.00011898,2]
[327060851,1715766647532,-151.0,0.00011898,2]
[327060852,1715766647542,-151.0,0.00011898,2]
[327060853,1715766647551,-851.513547,0.00011898,2]
[327060854,1715766647560,-151.0,0.00011898,2]
[327060855,1715766647569,-851.513547,0.00011898,2]
[327060856,1715766647579,-151.0,0.00011898,2]
[327060857,1715766647588,-264.042659,0.00011898,2]
[327060858,1715766647596,-151.0,0.00011898,2]
[327060859,1715766647606,-151.0,0.00011898,2]
[327060860,1715766647614,-151.0,0.00011898,2]
[327060861,1715766647624,-151.0,0.00011898,2]
[327060862,1715766647634,-151.0,0.00011898,2]
[327060863,1715766647643,-193.749254,0.00011898,2]
[327060864,1715766647652,-193.749254,0.00011898,2]
[327060865,1715766647661,-151.0,0.00011898,2]
[327060866,1715766647670,-151.0,0.00011898,2]
[327060867,1715766647679,-300000.02685977,0.00011898,2]
[327060868,1715766647688,-114673.32459842,0.00011898,2]
[327060869,1715766647701,-1572.0001,0.00011898,2]
[327060870,1715766647712,-1514.66991,0.00011898,2]
[327060871,1715766647724,-182240.03225129,0.00011898,2]
[327060872,1715766647733,-120826.04838828,0.00011898,2]
[327060874,1715766918655,353.34,8.507e-05,2]
[327060875,1715766948513,455.37687737,8.507e-05,2]
[327060876,1715766948535,4000.0,8.507e-05,2]
[327060877,1715766948557,3059.99954642,8.507e-05,2]
[327060878,1715766962509,940.00045358,8.507e-05,2]
[327060879,1715766962531,3633.03204252,8.507e-05,2]
[327060881,1715767431570,335.67,8.421e-05,2]
[327060894,1715767833468,-250.0,9.944e-05,2]
[327060895,1715767833479,-312.0,9.948e-05,2]
[327060896,1715767833489,-150.0,9.954e-05,2]
[327060897,1715767833498,-150.0,9.954e-05,2]
[327060898,1715767833507,-146.80613541,9.954e-05,2]
[327060899,1715767833519,-23.31386459,9.954e-05,2]
[327060900,1715767833528,-9038.11682152,9.955e-05,2]
[327060901,1715767833539,-924.27317848,9.955e-05,2]
[327060902,1715767833549,-1109.69,9.955e-05,2]
[327060903,1715767833558,-98.363807,9.96e-05,2]
[327060904,1715767833604,-226.646193,9.96e-05,2]
[327060905,1715767833613,-969.24667497,0.0001,2]
[327060906,1715767833624,-5069.8633685,0.0001,2]
[327060907,1715767833635,-171.89,0.00010182,2]
[327060908,1715767833644,-181.20224225,0.00010317,2]
[327060959,1715767838627,-250.0,9.935e-05,2]
[327060960,1715767838637,-506.79775775,0.00010317,2]
[327060961,1715767838649,-170.06,0.00010333,2]
[327060962,1715767838658,-369.62,0.00010407,2]
[327060963,1715767838667,-369.62,0.00010436,2]
[327060964,1715767838677,-369.62,0.00010464,2]
[327060965,1715767838685,-369.62,0.00010493,2]
[327060966,1715767838694,-369.62,0.00010521,2]
[327060967,1715767838703,-369.62,0.0001055,2]
[327060968,1715767838713,-310.92872829,0.00010578,2]
[327060971,1715767840981,-58.69127171,0.00010578,2]
[327060972,1715767840992,-369.62,0.00010607,2]
[327060973,1715767841002,-369.62,0.00010636,2]
[327060974,1715767841011,-369.62,0.00010664,2]
[327060975,1715767841021,-335.67,0.00010684,2]
[327060976,1715767841030,-369.62,0.00010693,2]
[327060977,1715767841039,-369.62,0.00010721,2]
[327060978,1715767841049,-369.62,0.0001075,2]
[327060979,1715767841059,-369.62,0.00010778,2]
[327060980,1715767841068,-369.62,0.00010807,2]
[327060981,1715767841077,-369.62,0.00010835,2]
[327060982,1715767841086,-369.62,0.00010864,2]
[327060983,1715767841096,-369.62,0.00010892,2]
[327060984,1715767841106,-369.62,0.00010921,2]
[327060985,1715767841115,-369.62,0.0001095,2]
[327060986,1715767841124,-1000.0,0.00010959,2]
[327060987,1715767841134,-1293.45,0.00010959,2]
[327060988,1715767841145,-200.0,0.00011,2]
[327060990,1715767841155,-869.03,0.00011096,2]
[327060992,1715767841164,-869.03,0.00011096,2]
[327060994,1715767841173,-869.03,0.00011096,2]
[327060996,1715767841183,-869.03,0.00011096,2]
[327060998,1715767841192,-869.03,0.00011096,2]
[327061000,1715767841201,-415.22,0.000111,2]
[327061002,1715767841211,-415.22,0.000111,2]
[327061004,1715767841220,-869.03,0.000111,2]
[327061006,1715767841229,-414.59,0.000111,2]
[327061008,1715767841240,-869.03,0.000111,2]
[327061009,1715767841249,-269.51,0.00011141,2]
[327061010,1715767841262,-312.0,0.00011191,2]